[Event "Titled Tuesday Blitz May 23 Late 2023"]
[White "Maksimovic, Bojan"]
[Black "Balla, Tamas-Kristof"]
[WhiteFideId "14408120"]
[BlackFideId "1208497"]
[WhiteElo "2468"]
[BlackElo "2334"]
[Result "1-0"]
[Round "04"]
[TimeControl "180+2"]
[Date "2023.05.23"]
[WhiteClock "0:00:44"]
[BlackClock "0:01:00"]

1. Nf3 {[%clk 0:03:00]}  c5 {[%clk 0:02:53]} 2. g3 {[%clk 0:03:00]}  g6 {[%clk 0:02:51]} 3. Bg2 {[%clk 0:03:00]}  Bg7 {[%clk 0:02:51]} 4. c3 {[%clk 0:03:00]}  d5 {[%clk 0:02:50]} 5. d3 {[%clk 0:02:59]}  Nc6 {[%clk 0:02:50]} 6. O-O {[%clk 0:02:58]}  e5 {[%clk 0:02:49]} 7. e4 {[%clk 0:02:57]}  d4 {[%clk 0:02:48]} 8. cxd4 {[%clk 0:02:56]}  cxd4 {[%clk 0:02:47]} 9. Bg5 {[%clk 0:02:55]}  Nge7 {[%clk 0:02:44]} 10. Na3 {[%clk 0:02:54]}  h6 {[%clk 0:02:42]} 11. Bd2 {[%clk 0:02:53]}  O-O {[%clk 0:02:42]} 12. b4 {[%clk 0:02:52]}  a6 {[%clk 0:02:39]} 13. b5 {[%clk 0:02:44]}  axb5 {[%clk 0:02:38]} 14. Nxb5 {[%clk 0:02:45]}  Be6 {[%clk 0:02:37]} 15. a4 {[%clk 0:02:44]}  Na5 {[%clk 0:02:32]} 16. Bb4 {[%clk 0:02:31]}  Qd7 {[%clk 0:02:23]} 17. Bd6 {[%clk 0:02:18]}  f6 {[%clk 0:02:13]} 18. Nh4 {[%clk 0:02:14]}  Kh7 {[%clk 0:02:08]} 19. f4 {[%clk 0:01:28]}  Rfc8 {[%clk 0:01:55]} 20. Bxe7 {[%clk 0:01:25]}  Qxe7 {[%clk 0:01:52]} 21. Nxg6 {[%clk 0:01:20]}  Kxg6 {[%clk 0:01:48]} 22. f5+ {[%clk 0:01:20]}  Kh7 {[%clk 0:01:48]} 23. fxe6 {[%clk 0:01:20]}  Qxe6 {[%clk 0:01:48]} 24. Qh5 {[%clk 0:01:20]}  Qe8 {[%clk 0:01:41]} 25. Qxe8 {[%clk 0:01:15]}  Rxe8 {[%clk 0:01:41]} 26. Nc7 {[%clk 0:01:16]}  Nb3 {[%clk 0:01:36]} 27. Nxe8 {[%clk 0:01:00]}  Nxa1 {[%clk 0:01:25]} 28. Nxg7 {[%clk 0:00:58]}  Rxa4 {[%clk 0:01:25]} 29. Nh5 {[%clk 0:00:56]}  Ra3 {[%clk 0:01:20]} 30. Nxf6+ {[%clk 0:00:55]}  Kg6 {[%clk 0:01:19]} 31. Nd7 {[%clk 0:00:55]}  Ra5 {[%clk 0:01:16]} 32. Nxe5+ {[%clk 0:00:55]}  Rxe5 {[%clk 0:01:16]} 33. Rxa1 {[%clk 0:00:55]}  Rc5 {[%clk 0:01:16]} 34. Rb1 {[%clk 0:00:52]}  b5 {[%clk 0:01:15]} 35. Rb4 {[%clk 0:00:49]}  Kf6 {[%clk 0:01:12]} 36. Rxd4 {[%clk 0:00:49]}  Rc1+ {[%clk 0:01:11]} 37. Bf1 {[%clk 0:00:48]}  Rb1 {[%clk 0:01:10]} 38. Rd5 {[%clk 0:00:47]}  b4 {[%clk 0:01:10]} 39. Kf2 {[%clk 0:00:47]}  b3 {[%clk 0:01:10]} 40. Rb5 {[%clk 0:00:48]}  b2 {[%clk 0:01:09]} 41. d4 {[%clk 0:00:47]}  Ke6 {[%clk 0:01:09]} 42. e5 {[%clk 0:00:44]}  Kd7 {[%clk 0:01:00]} 43. d5 {[%clk 0:00:44]} 1-0


[Site "https://www.chess.com"]

[Event "Titled Tuesday Blitz May 23 Late 2023"]
[White "Melian, Juan Sebastian"]
[Black "Grischuk, Alexander"]
[WhiteFideId "3706575"]
[BlackFideId "4126025"]
[WhiteElo "2092"]
[BlackElo "2721"]
[Result "0-1"]
[Round "04"]
[TimeControl "180+2"]
[Date "2023.05.23"]
[WhiteClock "0:00:02"]
[BlackClock "0:00:57"]

1. e4 {[%clk 0:02:49]}  g6 {[%clk 0:03:00]} 2. d4 {[%clk 0:02:49]}  Bg7 {[%clk 0:03:00]} 3. Nc3 {[%clk 0:02:50]}  d6 {[%clk 0:03:01]} 4. Be3 {[%clk 0:02:50]}  a6 {[%clk 0:03:01]} 5. Nf3 {[%clk 0:02:47]}  Nf6 {[%clk 0:02:59]} 6. h3 {[%clk 0:02:46]}  Nc6 {[%clk 0:02:46]} 7. Qd2 {[%clk 0:02:39]}  b5 {[%clk 0:02:43]} 8. Bd3 {[%clk 0:02:31]}  e5 {[%clk 0:02:40]} 9. dxe5 {[%clk 0:02:19]}  Nxe5 {[%clk 0:02:41]} 10. Nxe5 {[%clk 0:02:06]}  dxe5 {[%clk 0:02:42]} 11. O-O-O {[%clk 0:02:07]}  O-O {[%clk 0:02:37]} 12. Ne2 {[%clk 0:01:37]}  Be6 {[%clk 0:02:30]} 13. Kb1 {[%clk 0:01:37]}  Nd7 {[%clk 0:02:23]} 14. c3 {[%clk 0:01:08]}  Qe7 {[%clk 0:02:17]} 15. f4 {[%clk 0:01:01]}  exf4 {[%clk 0:02:15]} 16. Nxf4 {[%clk 0:01:01]}  Ne5 {[%clk 0:02:15]} 17. Nd5 {[%clk 0:00:43]}  Bxd5 {[%clk 0:02:07]} 18. exd5 {[%clk 0:00:44]}  Rad8 {[%clk 0:02:04]} 19. Be2 {[%clk 0:00:36]}  Rd7 {[%clk 0:01:50]} 20. Qc2 {[%clk 0:00:13]}  Rfd8 {[%clk 0:01:47]} 21. Bd4 {[%clk 0:00:12]}  Rxd5 {[%clk 0:01:46]} 22. Bxe5 {[%clk 0:00:12]}  Qxe5 {[%clk 0:01:39]} 23. Bf3 {[%clk 0:00:11]}  Rxd1+ {[%clk 0:01:38]} 24. Rxd1 {[%clk 0:00:12]}  Rxd1+ {[%clk 0:01:35]} 25. Qxd1 {[%clk 0:00:13]}  Bf6 {[%clk 0:01:35]} 26. Qd3 {[%clk 0:00:09]}  Kg7 {[%clk 0:01:33]} 27. Kc2 {[%clk 0:00:10]}  c5 {[%clk 0:01:27]} 28. Qe4 {[%clk 0:00:10]}  Qg3 {[%clk 0:01:22]} 29. Qe2 {[%clk 0:00:09]}  c4 {[%clk 0:01:13]} 30. Bb7 {[%clk 0:00:04]}  Qd6 {[%clk 0:01:07]} 31. a3 {[%clk 0:00:02]}  a5 {[%clk 0:01:07]} 32. Be4 {[%clk 0:00:03]}  Qc5 {[%clk 0:01:03]} 33. Bf3 {[%clk 0:00:02]}  b4 {[%clk 0:01:03]} 34. axb4 {[%clk 0:00:03]}  axb4 {[%clk 0:01:03]} 35. Qe4 {[%clk 0:00:04]}  Qb5 {[%clk 0:00:57]} 36. Qe3 {[%clk 0:00:02]}  Qa4+ {[%clk 0:00:56]} 37. Kc1 {[%clk 0:00:02]}  Qa1+ {[%clk 0:00:56]} 38. Kc2 {[%clk 0:00:02]}  b3+ {[%clk 0:00:56]} 39. Kd2 {[%clk 0:00:02]}  Qxb2+ {[%clk 0:00:57]} 0-1


[Site "https://www.chess.com"]

[Event "Titled Tuesday Blitz May 23 Late 2023"]
[White "Aldokhin, Ivan"]
[Black "Andreikin, Dmitry"]
[WhiteFideId "24115720"]
[BlackFideId "4158814"]
[WhiteElo "2322"]
[BlackElo "2736"]
[Result "0-1"]
[Round "04"]
[TimeControl "180+2"]
[Date "2023.05.23"]
[WhiteClock "0:00:00"]
[BlackClock "0:00:10"]

1. e4 {[%clk 0:03:00]}  g6 {[%clk 0:02:58]} 2. d4 {[%clk 0:03:00]}  Bg7 {[%clk 0:02:59]} 3. Nc3 {[%clk 0:03:00]}  c6 {[%clk 0:02:59]} 4. Bg5 {[%clk 0:02:41]}  Qb6 {[%clk 0:02:57]} 5. Nge2 {[%clk 0:02:38]}  Qxb2 {[%clk 0:02:51]} 6. Rb1 {[%clk 0:02:30]}  Qa3 {[%clk 0:02:51]} 7. Qd2 {[%clk 0:02:16]}  d6 {[%clk 0:02:44]} 8. h4 {[%clk 0:02:08]}  h6 {[%clk 0:02:34]} 9. Be3 {[%clk 0:02:08]}  Nf6 {[%clk 0:02:30]} 10. f3 {[%clk 0:02:09]}  Nbd7 {[%clk 0:02:29]} 11. g4 {[%clk 0:02:05]}  Nb6 {[%clk 0:02:18]} 12. Ng3 {[%clk 0:01:55]}  Be6 {[%clk 0:02:17]} 13. h5 {[%clk 0:01:36]}  g5 {[%clk 0:02:17]} 14. Nf5 {[%clk 0:01:26]}  Bxf5 {[%clk 0:02:17]} 15. gxf5 {[%clk 0:01:26]}  Qa5 {[%clk 0:02:10]} 16. Bd3 {[%clk 0:01:21]}  Nfd7 {[%clk 0:02:01]} 17. O-O {[%clk 0:01:09]}  Rc8 {[%clk 0:01:46]} 18. Rb3 {[%clk 0:01:03]}  a6 {[%clk 0:01:02]} 19. Qc1 {[%clk 0:01:01]}  Na8 {[%clk 0:00:41]} 20. Ne2 {[%clk 0:00:53]}  b5 {[%clk 0:00:40]} 21. c4 {[%clk 0:00:43]}  c5 {[%clk 0:00:37]} 22. cxb5 {[%clk 0:00:36]}  O-O {[%clk 0:00:34]} 23. Qa3 {[%clk 0:00:23]}  Qd8 {[%clk 0:00:27]} 24. Rc1 {[%clk 0:00:08]}  Nab6 {[%clk 0:00:22]} 25. dxc5 {[%clk 0:00:02]}  Nxc5 {[%clk 0:00:22]} 26. Bxc5 {[%clk 0:00:02]}  dxc5 {[%clk 0:00:23]} 27. Bc4 {[%clk 0:00:01]}  Nxc4 {[%clk 0:00:20]} 28. Rxc4 {[%clk 0:00:01]}  axb5 {[%clk 0:00:19]} 29. Rxb5 {[%clk 0:00:02]}  Qd1+ {[%clk 0:00:18]} 30. Kf2 {[%clk 0:00:03]}  Qh1 {[%clk 0:00:17]} 31. Qb3 {[%clk 0:00:03]}  Rfd8 {[%clk 0:00:15]} 32. Ke3 {[%clk 0:00:03]}  Qe1 {[%clk 0:00:11]} 33. Rbxc5 {[%clk 0:00:03]}  Rxc5 {[%clk 0:00:10]} 34. Rxc5 {[%clk 0:00:02]}  Bd4+ {[%clk 0:00:10]} 35. Kd3 {[%clk 0:00:00]}  Bxc5+ {[%clk 0:00:10]} 0-1


[Site "https://www.chess.com"]

[Event "Titled Tuesday Blitz May 23 Late 2023"]
[White "Checa, Nicolas"]
[Black "Manukyan, Sargis A."]
[WhiteFideId "2069342"]
[BlackFideId "13303970"]
[WhiteElo "2507"]
[BlackElo "2187"]
[Result "1-0"]
[Round "04"]
[TimeControl "180+2"]
[Date "2023.05.23"]
[WhiteClock "0:01:08"]
[BlackClock "0:00:04"]

1. d4 {[%clk 0:03:00]}  d5 {[%clk 0:03:00]} 2. c4 {[%clk 0:03:00]}  e6 {[%clk 0:03:00]} 3. Nf3 {[%clk 0:03:00]}  Nf6 {[%clk 0:03:01]} 4. Nc3 {[%clk 0:03:00]}  Be7 {[%clk 0:03:01]} 5. Bf4 {[%clk 0:02:58]}  c5 {[%clk 0:03:01]} 6. dxc5 {[%clk 0:02:56]}  Na6 {[%clk 0:03:00]} 7. e3 {[%clk 0:02:55]}  Nxc5 {[%clk 0:03:00]} 8. Be2 {[%clk 0:02:54]}  O-O {[%clk 0:02:59]} 9. O-O {[%clk 0:02:54]}  dxc4 {[%clk 0:02:58]} 10. Bxc4 {[%clk 0:02:54]}  a6 {[%clk 0:02:58]} 11. a4 {[%clk 0:02:53]}  b6 {[%clk 0:02:58]} 12. Qe2 {[%clk 0:02:50]}  Bb7 {[%clk 0:02:57]} 13. Rfd1 {[%clk 0:02:50]}  Qe8 {[%clk 0:02:48]} 14. h3 {[%clk 0:02:39]}  h6 {[%clk 0:02:47]} 15. b4 {[%clk 0:02:33]}  Nce4 {[%clk 0:02:46]} 16. Nxe4 {[%clk 0:02:30]}  Nxe4 {[%clk 0:02:44]} 17. Qb2 {[%clk 0:02:29]}  Bf6 {[%clk 0:02:44]} 18. Be5 {[%clk 0:02:29]}  Qe7 {[%clk 0:02:41]} 19. Bxf6 {[%clk 0:02:21]}  Qxf6 {[%clk 0:02:42]} 20. Qxf6 {[%clk 0:02:20]}  Nxf6 {[%clk 0:02:37]} 21. Rd6 {[%clk 0:02:19]}  Rac8 {[%clk 0:02:29]} 22. Ne5 {[%clk 0:02:05]}  b5 {[%clk 0:02:11]} 23. axb5 {[%clk 0:02:05]}  axb5 {[%clk 0:02:12]} 24. Bxb5 {[%clk 0:02:05]}  Nd5 {[%clk 0:02:11]} 25. Bc6 {[%clk 0:01:55]}  Ba8 {[%clk 0:01:49]} 26. b5 {[%clk 0:01:52]}  f6 {[%clk 0:01:41]} 27. Nd7 {[%clk 0:01:49]}  Rfd8 {[%clk 0:00:57]} 28. Bxa8 {[%clk 0:01:38]}  Rxa8 {[%clk 0:00:50]} 29. Rxa8 {[%clk 0:01:36]}  Rxa8 {[%clk 0:00:51]} 30. Rxe6 {[%clk 0:01:34]}  Kf7 {[%clk 0:00:24]} 31. Rd6 {[%clk 0:01:32]}  Nc3 {[%clk 0:00:16]} 32. b6 {[%clk 0:01:32]}  Ra1+ {[%clk 0:00:14]} 33. Kh2 {[%clk 0:01:31]}  Rb1 {[%clk 0:00:15]} 34. Nc5 {[%clk 0:01:31]}  Rb5 {[%clk 0:00:11]} 35. b7 {[%clk 0:01:30]}  Ke8 {[%clk 0:00:10]} 36. Rc6 {[%clk 0:01:28]}  Na4 {[%clk 0:00:05]} 37. Rc8+ {[%clk 0:01:21]}  Ke7 {[%clk 0:00:05]} 38. Nxa4 {[%clk 0:01:16]}  Rxb7 {[%clk 0:00:06]} 39. Nc3 {[%clk 0:01:16]}  Ra7 {[%clk 0:00:06]} 40. Rc4 {[%clk 0:01:16]}  Kf7 {[%clk 0:00:06]} 41. g4 {[%clk 0:01:16]}  Kg6 {[%clk 0:00:07]} 42. Rc5 {[%clk 0:01:15]}  Kh7 {[%clk 0:00:07]} 43. Kg3 {[%clk 0:01:14]}  Ra6 {[%clk 0:00:08]} 44. h4 {[%clk 0:01:14]}  Ra7 {[%clk 0:00:08]} 45. h5 {[%clk 0:01:15]}  Rb7 {[%clk 0:00:09]} 46. Nd5 {[%clk 0:01:14]}  Ra7 {[%clk 0:00:09]} 47. Rc7 {[%clk 0:01:14]}  Ra6 {[%clk 0:00:09]} 48. f3 {[%clk 0:01:12]}  Rd6 {[%clk 0:00:09]} 49. e4 {[%clk 0:01:12]}  Ra6 {[%clk 0:00:09]} 50. Ne7 {[%clk 0:01:12]}  Ra8 {[%clk 0:00:06]} 51. Rc8 {[%clk 0:01:12]}  Ra3 {[%clk 0:00:03]} 52. Kf4 {[%clk 0:01:11]}  f5 {[%clk 0:00:03]} 53. gxf5 {[%clk 0:01:10]}  g5+ {[%clk 0:00:02]} 54. fxg6+ {[%clk 0:01:09]}  Kg7 {[%clk 0:00:03]} 55. Nf5+ {[%clk 0:01:09]}  Kf6 {[%clk 0:00:04]} 56. Rc6# {[%clk 0:01:08]} 1-0


[Site "https://www.chess.com"]

[Event "Titled Tuesday Blitz May 23 Late 2023"]
[White "Hakobyan, Aram"]
[Black "Denishev, Marat"]
[WhiteFideId "13306677"]
[BlackFideId "24131563"]
[WhiteElo "2584"]
[BlackElo "2311"]
[Result "1-0"]
[Round "04"]
[TimeControl "180+2"]
[Date "2023.05.23"]
[WhiteClock "0:00:32"]
[BlackClock "0:00:02"]

1. d4 {[%clk 0:03:00]}  Nf6 {[%clk 0:02:59]} 2. c4 {[%clk 0:03:01]}  c5 {[%clk 0:02:59]} 3. d5 {[%clk 0:03:01]}  b5 {[%clk 0:02:59]} 4. cxb5 {[%clk 0:03:02]}  a6 {[%clk 0:02:59]} 5. b6 {[%clk 0:03:02]}  d6 {[%clk 0:02:57]} 6. Nc3 {[%clk 0:03:03]}  g6 {[%clk 0:02:57]} 7. e4 {[%clk 0:03:03]}  Bg7 {[%clk 0:02:55]} 8. Nf3 {[%clk 0:03:03]}  O-O {[%clk 0:02:55]} 9. Be2 {[%clk 0:03:04]}  Qxb6 {[%clk 0:02:54]} 10. O-O {[%clk 0:03:04]}  Bg4 {[%clk 0:02:54]} 11. Nd2 {[%clk 0:03:05]}  Bxe2 {[%clk 0:02:54]} 12. Qxe2 {[%clk 0:03:06]}  Nbd7 {[%clk 0:02:54]} 13. Nc4 {[%clk 0:03:06]}  Qb4 {[%clk 0:02:45]} 14. Bd2 {[%clk 0:02:43]}  a5 {[%clk 0:02:32]} 15. a4 {[%clk 0:02:24]}  Nb6 {[%clk 0:02:15]} 16. Nxb6 {[%clk 0:02:24]}  Qxb6 {[%clk 0:02:16]} 17. Nb5 {[%clk 0:02:24]}  Nd7 {[%clk 0:02:10]} 18. Bc3 {[%clk 0:02:24]}  Rac8 {[%clk 0:01:58]} 19. Bxg7 {[%clk 0:01:45]}  Kxg7 {[%clk 0:01:59]} 20. Rac1 {[%clk 0:01:45]}  Ne5 {[%clk 0:01:48]} 21. Qe3 {[%clk 0:01:43]}  Qb7 {[%clk 0:01:18]} 22. f4 {[%clk 0:01:40]}  Nd7 {[%clk 0:01:16]} 23. b3 {[%clk 0:01:34]}  c4 {[%clk 0:01:06]} 24. bxc4 {[%clk 0:01:32]}  Nc5 {[%clk 0:01:04]} 25. e5 {[%clk 0:01:31]}  Rfd8 {[%clk 0:00:48]} 26. f5 {[%clk 0:01:28]}  dxe5 {[%clk 0:00:42]} 27. fxg6 {[%clk 0:01:28]}  hxg6 {[%clk 0:00:39]} 28. Qxe5+ {[%clk 0:01:28]}  f6 {[%clk 0:00:39]} 29. Qe2 {[%clk 0:01:24]}  Nxa4 {[%clk 0:00:36]} 30. Rce1 {[%clk 0:01:24]}  Rd7 {[%clk 0:00:30]} 31. h4 {[%clk 0:01:03]}  Nb6 {[%clk 0:00:25]} 32. Nd4 {[%clk 0:00:56]}  Rxc4 {[%clk 0:00:20]} 33. Ne6+ {[%clk 0:00:56]}  Kf7 {[%clk 0:00:21]} 34. h5 {[%clk 0:00:48]}  Qxd5 {[%clk 0:00:18]} 35. hxg6+ {[%clk 0:00:48]}  Kg8 {[%clk 0:00:15]} 36. Rd1 {[%clk 0:00:38]}  Qe4 {[%clk 0:00:08]} 37. Qh5 {[%clk 0:00:31]}  Qe3+ {[%clk 0:00:03]} 38. Kh1 {[%clk 0:00:31]}  Qxe6 {[%clk 0:00:01]} 39. Qh7+ {[%clk 0:00:30]}  Kf8 {[%clk 0:00:02]} 40. g7+ {[%clk 0:00:31]}  Kf7 {[%clk 0:00:02]} 41. g8=Q# {[%clk 0:00:32]} 1-0


[Site "https://www.chess.com"]

[Event "Titled Tuesday Blitz May 23 Late 2023"]
[White "Korchmar, Vasiliy"]
[Black "Svane, Rasmus"]
[WhiteFideId "24131750"]
[BlackFideId "4657101"]
[WhiteElo "2370"]
[BlackElo "2601"]
[Result "0-1"]
[Round "04"]
[TimeControl "180+2"]
[Date "2023.05.23"]
[WhiteClock "0:00:02"]
[BlackClock "0:01:05"]

1. e4 {[%clk 0:03:00]}  c6 {[%clk 0:02:58]} 2. d4 {[%clk 0:03:00]}  d5 {[%clk 0:02:59]} 3. e5 {[%clk 0:03:00]}  Bf5 {[%clk 0:02:58]} 4. Nd2 {[%clk 0:03:00]}  e6 {[%clk 0:02:59]} 5. Nb3 {[%clk 0:03:01]}  Ne7 {[%clk 0:02:58]} 6. Nf3 {[%clk 0:03:01]}  Nd7 {[%clk 0:02:59]} 7. Be2 {[%clk 0:03:01]}  Ng6 {[%clk 0:02:58]} 8. O-O {[%clk 0:03:01]}  f6 {[%clk 0:02:58]} 9. exf6 {[%clk 0:02:54]}  Qxf6 {[%clk 0:02:59]} 10. c4 {[%clk 0:02:40]}  Bd6 {[%clk 0:02:57]} 11. cxd5 {[%clk 0:02:24]}  exd5 {[%clk 0:02:57]} 12. Bd3 {[%clk 0:02:18]}  O-O {[%clk 0:02:56]} 13. Bg5 {[%clk 0:02:17]}  Qf7 {[%clk 0:02:56]} 14. Bxf5 {[%clk 0:02:13]}  Qxf5 {[%clk 0:02:57]} 15. Re1 {[%clk 0:02:06]}  Rae8 {[%clk 0:02:37]} 16. Na5 {[%clk 0:01:52]}  h6 {[%clk 0:02:13]} 17. Bd2 {[%clk 0:01:48]}  Rxe1+ {[%clk 0:02:03]} 18. Qxe1 {[%clk 0:01:49]}  Rb8 {[%clk 0:01:47]} 19. Qe2 {[%clk 0:01:49]}  Nf6 {[%clk 0:01:45]} 20. Re1 {[%clk 0:01:33]}  Ne4 {[%clk 0:01:42]} 21. b4 {[%clk 0:01:13]}  Nxd2 {[%clk 0:01:24]} 22. Qxd2 {[%clk 0:01:12]}  Nf4 {[%clk 0:01:25]} 23. Re3 {[%clk 0:00:52]}  Qb1+ {[%clk 0:01:12]} 24. Ne1 {[%clk 0:00:02]}  Bxb4 {[%clk 0:01:05]} 0-1


[Site "https://www.chess.com"]

[Event "Titled Tuesday Blitz May 23 Late 2023"]
[White "Fridman, Daniel"]
[Black "Melikyan, Gnel"]
[WhiteFideId "11600454"]
[BlackFideId "54109990"]
[WhiteElo "2525"]
[BlackElo "2138"]
[Result "0-1"]
[Round "04"]
[TimeControl "180+2"]
[Date "2023.05.23"]
[WhiteClock "0:00:41"]
[BlackClock "0:00:44"]

1. d4 {[%clk 0:03:00]}  Nf6 {[%clk 0:02:58]} 2. Nf3 {[%clk 0:03:01]}  g6 {[%clk 0:02:58]} 3. g3 {[%clk 0:03:01]}  Bg7 {[%clk 0:02:59]} 4. Bg2 {[%clk 0:03:02]}  O-O {[%clk 0:02:59]} 5. c4 {[%clk 0:03:02]}  d6 {[%clk 0:03:00]} 6. Nc3 {[%clk 0:03:02]}  c6 {[%clk 0:03:01]} 7. O-O {[%clk 0:03:03]}  Qb6 {[%clk 0:03:01]} 8. b3 {[%clk 0:03:02]}  Qa5 {[%clk 0:03:01]} 9. Bd2 {[%clk 0:03:01]}  Qh5 {[%clk 0:03:01]} 10. e4 {[%clk 0:02:57]}  Bg4 {[%clk 0:02:58]} 11. Bf4 {[%clk 0:02:50]}  Nfd7 {[%clk 0:02:35]} 12. Qd3 {[%clk 0:02:36]}  Na6 {[%clk 0:02:29]} 13. Rac1 {[%clk 0:02:27]}  Nb4 {[%clk 0:02:24]} 14. Qe3 {[%clk 0:02:02]}  e5 {[%clk 0:02:17]} 15. dxe5 {[%clk 0:02:01]}  dxe5 {[%clk 0:02:16]} 16. Bg5 {[%clk 0:01:58]}  f6 {[%clk 0:02:08]} 17. Bh4 {[%clk 0:01:58]}  Bh6 {[%clk 0:02:04]} 18. Qe2 {[%clk 0:01:50]}  Bxc1 {[%clk 0:02:03]} 19. Rxc1 {[%clk 0:01:46]}  g5 {[%clk 0:02:03]} 20. h3 {[%clk 0:01:46]}  Bxf3 {[%clk 0:01:59]} 21. Bxf3 {[%clk 0:01:45]}  Qf7 {[%clk 0:01:59]} 22. Bh5 {[%clk 0:01:43]}  Qg7 {[%clk 0:01:55]} 23. c5 {[%clk 0:01:33]}  Na6 {[%clk 0:01:49]} 24. Bxg5 {[%clk 0:01:29]}  fxg5 {[%clk 0:01:46]} 25. b4 {[%clk 0:01:27]}  Nf6 {[%clk 0:01:43]} 26. Bf3 {[%clk 0:01:24]}  Rad8 {[%clk 0:01:42]} 27. a3 {[%clk 0:01:23]}  Nc7 {[%clk 0:01:32]} 28. Nd1 {[%clk 0:01:10]}  Ne6 {[%clk 0:01:31]} 29. Qa2 {[%clk 0:01:01]}  Qf7 {[%clk 0:01:27]} 30. Be2 {[%clk 0:01:02]}  Kh8 {[%clk 0:01:08]} 31. Bc4 {[%clk 0:01:02]}  Rfe8 {[%clk 0:01:02]} 32. f3 {[%clk 0:00:59]}  Nh5 {[%clk 0:00:55]} 33. Kf2 {[%clk 0:00:55]}  Nxg3 {[%clk 0:00:47]} 34. Ne3 {[%clk 0:00:41]}  Rd2+ {[%clk 0:00:44]} 0-1


[Site "https://www.chess.com"]

[Event "Titled Tuesday Blitz May 23 Late 2023"]
[White "Ibarra Jerez, Jose Carlos"]
[Black "Spitzl, Vinzent"]
[WhiteFideId "2226332"]
[BlackFideId "12901253"]
[WhiteElo "2638"]
[BlackElo "2225"]
[Result "1/2-1/2"]
[Round "04"]
[TimeControl "180+2"]
[Date "2023.05.23"]
[WhiteClock "0:00:08"]
[BlackClock "0:00:03"]

1. e4 {[%clk 0:02:59]}  c5 {[%clk 0:02:58]} 2. Nf3 {[%clk 0:02:58]}  d6 {[%clk 0:02:59]} 3. d4 {[%clk 0:02:59]}  cxd4 {[%clk 0:03:00]} 4. Nxd4 {[%clk 0:02:59]}  Nf6 {[%clk 0:03:00]} 5. Nc3 {[%clk 0:02:59]}  a6 {[%clk 0:03:01]} 6. Be3 {[%clk 0:02:59]}  e5 {[%clk 0:03:01]} 7. Nf3 {[%clk 0:02:59]}  Be7 {[%clk 0:02:59]} 8. Bc4 {[%clk 0:02:59]}  O-O {[%clk 0:02:59]} 9. O-O {[%clk 0:02:59]}  Nc6 {[%clk 0:02:58]} 10. Bg5 {[%clk 0:02:58]}  Be6 {[%clk 0:02:52]} 11. Bb3 {[%clk 0:02:57]}  Nd7 {[%clk 0:02:52]} 12. Be3 {[%clk 0:02:53]}  Nb6 {[%clk 0:02:43]} 13. Bxb6 {[%clk 0:02:48]}  Qxb6 {[%clk 0:02:41]} 14. Nd5 {[%clk 0:02:49]}  Qd8 {[%clk 0:02:26]} 15. c3 {[%clk 0:02:48]}  Rc8 {[%clk 0:02:26]} 16. Qe2 {[%clk 0:02:45]}  Na5 {[%clk 0:02:25]} 17. Rfd1 {[%clk 0:02:44]}  Nxb3 {[%clk 0:02:20]} 18. axb3 {[%clk 0:02:45]}  Bg5 {[%clk 0:02:18]} 19. h3 {[%clk 0:02:29]}  Bh6 {[%clk 0:02:03]} 20. Nh2 {[%clk 0:02:25]}  Bg5 {[%clk 0:01:55]} 21. b4 {[%clk 0:02:15]}  Qe8 {[%clk 0:01:47]} 22. Qh5 {[%clk 0:02:10]}  Bd8 {[%clk 0:01:39]} 23. Qe2 {[%clk 0:02:03]}  Qc6 {[%clk 0:01:38]} 24. Ng4 {[%clk 0:02:01]}  f5 {[%clk 0:01:30]} 25. Nh2 {[%clk 0:01:45]}  fxe4 {[%clk 0:01:19]} 26. Qxe4 {[%clk 0:01:44]}  Bxd5 {[%clk 0:00:53]} 27. Rxd5 {[%clk 0:01:40]}  Bb6 {[%clk 0:00:51]} 28. Rf1 {[%clk 0:01:30]}  Rf4 {[%clk 0:00:50]} 29. Qd3 {[%clk 0:01:30]}  Rcf8 {[%clk 0:00:46]} 30. Rxd6 {[%clk 0:01:23]}  Rxf2 {[%clk 0:00:36]} 31. Rxf2 {[%clk 0:01:23]}  Bxf2+ {[%clk 0:00:28]} 32. Kh1 {[%clk 0:01:23]}  Qa4 {[%clk 0:00:21]} 33. Qd5+ {[%clk 0:01:02]}  Kh8 {[%clk 0:00:19]} 34. Nf3 {[%clk 0:00:54]}  Qa1+ {[%clk 0:00:18]} 35. Kh2 {[%clk 0:00:54]}  Qc1 {[%clk 0:00:14]} 36. Qxe5 {[%clk 0:00:46]}  Be3 {[%clk 0:00:14]} 37. g3 {[%clk 0:00:20]}  Qxb2+ {[%clk 0:00:12]} 38. Kh1 {[%clk 0:00:18]}  Qc1+ {[%clk 0:00:11]} 39. Kg2 {[%clk 0:00:18]}  Qc2+ {[%clk 0:00:06]} 40. Kh1 {[%clk 0:00:16]}  Qf2 {[%clk 0:00:04]} 41. Qe4 {[%clk 0:00:08]}  Qf1+ {[%clk 0:00:04]} 42. Kh2 {[%clk 0:00:08]}  Qf2+ {[%clk 0:00:03]} 43. Kh1 {[%clk 0:00:08]}  Qf1+ {[%clk 0:00:04]} 44. Kh2 {[%clk 0:00:09]}  Qe2+ {[%clk 0:00:04]} 45. Kh1 {[%clk 0:00:08]}  Qf1+ {[%clk 0:00:03]} 1/2-1/2


[Site "https://www.chess.com"]